[Event "*** Titled Tuesday Blitz"]
[Site "Chess.com"]
[Date "2020.05.12"]
[Round "4"]
[White "floplover"]
[Black "fish7728"]
[Result "0-1"]
[WhiteElo "2229"]
[BlackElo "2051"]
[TimeControl "180+1"]
[EndTime "10:38:27 PDT"]
[Termination "fish7728 won on time"]

1. d4 {[%clk 0:03:00.9]} 1... d5 {[%clk 0:02:58.5]} 2. c4 {[%clk 0:02:59.7]}
2... c6 {[%clk 0:02:56.7]} 3. Nc3 {[%clk 0:02:59.7]} 3... Nf6 {[%clk 0:02:53.3]}
4. Nf3 {[%clk 0:02:59.8]} 4... e6 {[%clk 0:02:50.1]} 5. Bg5 {[%clk 0:02:59.7]}
5... h6 {[%clk 0:02:40.7]} 6. Bxf6 {[%clk 0:02:59.4]} 6... Qxf6 {[%clk
0:02:39.5]} 7. e3 {[%clk 0:02:59.9]} 7... g6 {[%clk 0:02:39.2]} 8. Be2 {[%clk
0:02:57.2]} 8... Bg7 {[%clk 0:02:38.8]} 9. O-O {[%clk 0:02:57]} 9... O-O {[%clk
0:02:37.9]} 10. e4 {[%clk 0:02:53]} 10... dxe4 {[%clk 0:02:33.8]} 11. Nxe4
{[%clk 0:02:53.9]} 11... Qe7 {[%clk 0:02:31.1]} 12. c5 {[%clk 0:02:47.3]} 12...
Nd7 {[%clk 0:02:27.6]} 13. Rc1 {[%clk 0:02:37.8]} 13... e5 {[%clk 0:02:25.6]}
14. d5 {[%clk 0:02:29]} 14... cxd5 {[%clk 0:02:21.4]} 15. Qxd5 {[%clk 0:02:29]}
15... Nf6 {[%clk 0:02:20.1]} 16. Nxf6+ {[%clk 0:02:16.8]} 16... Bxf6 {[%clk
0:02:15.1]} 17. Qe4 {[%clk 0:01:27.9]} 17... Bf5 {[%clk 0:02:13.9]} 18. Qa4
{[%clk 0:01:20.2]} 18... Rfd8 {[%clk 0:02:04.2]} 19. Rfd1 {[%clk 0:00:59]} 19...
Rxd1+ {[%clk 0:02:02.3]} 20. Bxd1 {[%clk 0:00:58.4]} 20... Rd8 {[%clk
0:01:58.6]} 21. Bb3 {[%clk 0:00:50.3]} 21... e4 {[%clk 0:01:52.6]} 22. Ne1
{[%clk 0:00:38.6]} 22... e3 {[%clk 0:01:50.9]} 23. Nf3 {[%clk 0:00:29.8]} 23...
exf2+ {[%clk 0:01:45.4]} 24. Kxf2 {[%clk 0:00:30.4]} 24... Bxb2 {[%clk
0:01:27.6]} 25. Rc4 {[%clk 0:00:17.6]} 25... Bd3 {[%clk 0:01:24.5]} 26. Rf4
{[%clk 0:00:14.9]} 26... Qxc5+ {[%clk 0:01:10.3]} 27. Kg3 {[%clk 0:00:15.3]}
27... Bf5 {[%clk 0:00:57.1]} 28. h4 {[%clk 0:00:09.7]} 28... Be5 {[%clk
0:00:34.2]} 29. Nxe5 {[%clk 0:00:09.2]} 29... Qxe5 {[%clk 0:00:33.9]} 30. Qc4
{[%clk 0:00:07.6]} 30... Be6 {[%clk 0:00:26.6]} 0-1

[Event "*** Titled Tuesday Blitz"]
[Site "Chess.com"]
[Date "2020.05.12"]
[Round "4"]
[White "coalescenet"]
[Black "Zq1"]
[Result "1-0"]
[WhiteElo "2347"]
[BlackElo "2534"]
[TimeControl "180+1"]
[EndTime "10:38:28 PDT"]
[Termination "coalescenet won on time"]

1. d4 {[%clk 0:02:54.4]} 1... Nf6 {[%clk 0:02:59.2]} 2. c4 {[%clk 0:02:52.2]}
2... a6 {[%clk 0:02:59.3]} 3. Nf3 {[%clk 0:02:48.8]} 3... c5 {[%clk 0:02:59.3]}
4. d5 {[%clk 0:02:49.2]} 4... b5 {[%clk 0:02:58.6]} 5. Bg5 {[%clk 0:02:44.7]}
5... g6 {[%clk 0:02:56.6]} 6. Nbd2 {[%clk 0:02:43]} 6... Bg7 {[%clk 0:02:53.2]}
7. e4 {[%clk 0:02:42.7]} 7... O-O {[%clk 0:02:44.9]} 8. Bd3 {[%clk 0:02:35.5]}
8... d6 {[%clk 0:02:38]} 9. O-O {[%clk 0:02:34.6]} 9... h6 {[%clk 0:02:35.8]}
10. Bxf6 {[%clk 0:02:33.4]} 10... Bxf6 {[%clk 0:02:35]} 11. Qc2 {[%clk
0:02:29.5]} 11... Nd7 {[%clk 0:02:26.2]} 12. cxb5 {[%clk 0:02:25.9]} 12... axb5
{[%clk 0:02:17.8]} 13. Bxb5 {[%clk 0:02:26.8]} 13... Ba6 {[%clk 0:02:07.5]} 14.
Bxa6 {[%clk 0:02:25.2]} 14... Rxa6 {[%clk 0:02:07.2]} 15. a4 {[%clk 0:02:23.1]}
15... Qb6 {[%clk 0:02:00.9]} 16. Nc4 {[%clk 0:02:19]} 16... Qb4 {[%clk
0:01:59.9]} 17. Ne1 {[%clk 0:02:05.7]} 17... Rb8 {[%clk 0:01:55]} 18. Ra3 {[%clk
0:01:58.2]} 18... Ne5 {[%clk 0:01:37.5]} 19. Nxe5 {[%clk 0:01:50]} 19... Bxe5
{[%clk 0:01:37.1]} 20. Nd3 {[%clk 0:01:49.7]} 20... Qxe4 {[%clk 0:01:26.5]} 21.
Re1 {[%clk 0:01:44.8]} 21... Qf5 {[%clk 0:01:10.6]} 22. Qe2 {[%clk 0:01:41.9]}
22... Bf6 {[%clk 0:01:01.3]} 23. b3 {[%clk 0:01:28.5]} 23... Rab6 {[%clk
0:00:57.2]} 24. Nc1 {[%clk 0:01:22]} 24... Rb4 {[%clk 0:00:48.5]} 25. a5 {[%clk
0:01:16.1]} 25... Ra8 {[%clk 0:00:44.1]} 26. a6 {[%clk 0:01:15.4]} 26... Rb6
{[%clk 0:00:38.6]} 27. Nd3 {[%clk 0:01:11.2]} 27... Qxd5 {[%clk 0:00:36.8]} 28.
Nf4 {[%clk 0:01:05.3]} 28... Qc6 {[%clk 0:00:35.9]} 29. a7 {[%clk 0:01:04.3]}
29... Rb7 {[%clk 0:00:33.6]} 30. Ra6 {[%clk 0:01:02.8]} 30... Qb5 {[%clk
0:00:21.8]} 31. Qxb5 {[%clk 0:00:54.7]} 31... Rxb5 {[%clk 0:00:21.1]} 32. Nd5
{[%clk 0:00:55.1]} 32... Kg7 {[%clk 0:00:18.2]} 33. Nxe7 {[%clk 0:00:48.8]}
33... Bxe7 {[%clk 0:00:15.7]} 34. Rxe7 {[%clk 0:00:49.7]} 34... Rxb3 {[%clk
0:00:14.9]} 35. g3 {[%clk 0:00:50]} 35... d5 {[%clk 0:00:12.7]} 36. Rc7 {[%clk
0:00:47]} 36... c4 {[%clk 0:00:11.8]} 37. Rd6 {[%clk 0:00:47.1]} 37... Ra3
{[%clk 0:00:09.3]} 38. Rdd7 {[%clk 0:00:46.9]} 38... Rf8 {[%clk 0:00:06.3]} 39.
Rxd5 {[%clk 0:00:45.2]} 39... c3 {[%clk 0:00:05.6]} 40. Rdd7 {[%clk 0:00:43.8]}
40... Kf6 {[%clk 0:00:03.9]} 41. Kg2 {[%clk 0:00:43.7]} 41... Ke6 {[%clk
0:00:03.8]} 42. Re7+ {[%clk 0:00:44]} 42... Kf6 {[%clk 0:00:03.5]} 43. Re3
{[%clk 0:00:43.3]} 1-0

[Event "*** Titled Tuesday Blitz"]
[Site "Chess.com"]
[Date "2020.05.12"]
[Round "4"]
[White "1f3_2g41-0"]
[Black "pfalcon1949"]
[Result "1/2-1/2"]
[WhiteElo "2296"]
[BlackElo "1994"]
[TimeControl "180+1"]
[EndTime "10:38:28 PDT"]
[Termination "Game drawn by agreement"]

1. e4 {[%clk 0:03:00.9]} 1... e6 {[%clk 0:02:59.9]} 2. d4 {[%clk 0:03:00]} 2...
d5 {[%clk 0:03:00]} 3. Nc3 {[%clk 0:02:59.6]} 3... Bb4 {[%clk 0:02:59.9]} 4.
exd5 {[%clk 0:02:59.5]} 4... exd5 {[%clk 0:02:58.4]} 5. Bd3 {[%clk 0:02:59.9]}
5... Ne7 {[%clk 0:02:58.5]} 6. Nf3 {[%clk 0:02:59.4]} 6... Be6 {[%clk
0:02:58.6]} 7. O-O {[%clk 0:02:59.5]} 7... O-O {[%clk 0:02:57.2]} 8. Ng5 {[%clk
0:02:56.4]} 8... h6 {[%clk 0:02:51.9]} 9. Nxe6 {[%clk 0:02:55.9]} 9... fxe6
{[%clk 0:02:51.7]} 10. Qg4 {[%clk 0:02:53.9]} 10... Kh8 {[%clk 0:02:46.6]} 11.
Qxe6 {[%clk 0:02:48.2]} 11... Rf6 {[%clk 0:02:46.1]} 12. Qh3 {[%clk 0:02:40.6]}
12... Nbc6 {[%clk 0:02:45.2]} 13. Be3 {[%clk 0:02:39.2]} 13... Qf8 {[%clk
0:02:39.9]} 14. Bg5 {[%clk 0:02:32.5]} 14... Nxd4 {[%clk 0:01:59.7]} 15. Bxf6
{[%clk 0:02:27.6]} 15... Qxf6 {[%clk 0:01:59.7]} 16. a3 {[%clk 0:02:07.2]} 16...
Bd6 {[%clk 0:01:52.7]} 17. Rae1 {[%clk 0:02:05.8]} 17... c6 {[%clk 0:01:47.1]}
18. Ne2 {[%clk 0:02:02.1]} 18... Ne6 {[%clk 0:01:31.5]} 19. c3 {[%clk
0:01:43.7]} 19... Rf8 {[%clk 0:01:30.9]} 20. g3 {[%clk 0:01:38.2]} 20... Ng5
{[%clk 0:01:29.3]} 21. Qg2 {[%clk 0:01:37.7]} 21... Nf3+ {[%clk 0:01:27.2]} 22.
Kh1 {[%clk 0:01:38.3]} 22... Nxe1 {[%clk 0:01:27]} 23. Rxe1 {[%clk 0:01:37.9]}
23... Qxf2 {[%clk 0:01:24.6]} 24. Qxf2 {[%clk 0:01:36]} 24... Rxf2 {[%clk
0:01:25.2]} 25. Kg1 {[%clk 0:01:35.2]} 25... Rf3 {[%clk 0:01:22.3]} 26. Bc2
{[%clk 0:01:31.8]} 26... g5 {[%clk 0:01:21.7]} 27. Kg2 {[%clk 0:01:31.5]} 27...
Rf6 {[%clk 0:01:15]} 28. Nd4 {[%clk 0:01:26.9]} 28... Kg7 {[%clk 0:01:14.4]} 29.
Ne6+ {[%clk 0:01:19.9]} 29... Kg8 {[%clk 0:01:08.1]} 30. Nd8 {[%clk 0:01:18.9]}
30... b6 {[%clk 0:01:04.5]} 31. Nb7 {[%clk 0:01:14.7]} 31... Kf7 {[%clk
0:00:49.8]} 32. Nd8+ {[%clk 0:01:03.1]} 32... Ke8 {[%clk 0:00:46.3]} 33. Ne6
{[%clk 0:01:03]} 33... Kd7 {[%clk 0:00:43.3]} 34. Bd1 {[%clk 0:00:58.4]} 34...
c5 {[%clk 0:00:22.3]} 35. Bg4 {[%clk 0:00:44.7]} 35... Kc6 {[%clk 0:00:22.1]}
36. Nd8+ {[%clk 0:00:43.8]} 36... Kc7 {[%clk 0:00:21.6]} 37. Ne6+ {[%clk
0:00:43.9]} 37... Kc6 {[%clk 0:00:22]} 38. Nd8+ {[%clk 0:00:44]} 38... Kc7
{[%clk 0:00:22.2]} 1/2-1/2

[Event "*** Titled Tuesday Blitz"]
[Site "Chess.com"]
[Date "2020.05.12"]
[Round "4"]
[White "dopolian"]
[Black "chessplayer9919"]
[Result "0-1"]
[WhiteElo "2306"]
[BlackElo "2481"]
[TimeControl "180+1"]
[EndTime "10:38:30 PDT"]
[Termination "chessplayer9919 won by checkmate"]

1. e4 {[%clk 0:03:00.9]} 1... c6 {[%clk 0:02:57.3]} 2. Nc3 {[%clk 0:02:59.7]}
2... d5 {[%clk 0:02:52.3]} 3. Nf3 {[%clk 0:02:59.7]} 3... dxe4 {[%clk
0:02:47.2]} 4. Nxe4 {[%clk 0:03:00.6]} 4... Nf6 {[%clk 0:02:46.3]} 5. Nxf6+
{[%clk 0:02:59.6]} 5... exf6 {[%clk 0:02:46.4]} 6. d4 {[%clk 0:03:00.1]} 6...
Bd6 {[%clk 0:02:46.8]} 7. Be3 {[%clk 0:02:55.5]} 7... O-O {[%clk 0:02:47.7]} 8.
Qd2 {[%clk 0:02:55.5]} 8... Qc7 {[%clk 0:02:46.8]} 9. Bd3 {[%clk 0:02:49.4]}
9... Re8 {[%clk 0:02:41.1]} 10. O-O-O {[%clk 0:02:42.4]} 10... Nd7 {[%clk
0:02:35.1]} 11. g4 {[%clk 0:02:36.9]} 11... Nb6 {[%clk 0:02:32.1]} 12. g5 {[%clk
0:02:36]} 12... Nd5 {[%clk 0:02:15.3]} 13. gxf6 {[%clk 0:02:22]} 13... Nxe3
{[%clk 0:01:56.2]} 14. fxe3 {[%clk 0:01:55.2]} 14... g6 {[%clk 0:01:54.9]} 15.
Rde1 {[%clk 0:01:42.7]} 15... c5 {[%clk 0:01:50.1]} 16. dxc5 {[%clk 0:01:06.1]}
16... Qxc5 {[%clk 0:01:43.7]} 17. e4 {[%clk 0:00:51.1]} 17... Bg4 {[%clk
0:01:40.1]} 18. Rhf1 {[%clk 0:00:47.2]} 18... Rad8 {[%clk 0:01:33.4]} 19. Qg2
{[%clk 0:00:37.2]} 19... Qh5 {[%clk 0:01:19.9]} 20. Kb1 {[%clk 0:00:32.9]} 20...
Bh3 {[%clk 0:01:16.6]} 21. Qf2 {[%clk 0:00:24.8]} 21... Bxf1 {[%clk 0:01:16.3]}
22. Rxf1 {[%clk 0:00:25.4]} 22... Qc5 {[%clk 0:00:52.9]} 23. Qh4 {[%clk
0:00:22.9]} 23... h5 {[%clk 0:00:40.4]} 24. Rg1 {[%clk 0:00:16.1]} 24... Be5
{[%clk 0:00:32.3]} 25. Qg5 {[%clk 0:00:07.4]} 25... Qb6 {[%clk 0:00:19.3]} 26.
Nxe5 {[%clk 0:00:03.9]} 26... Rxe5 {[%clk 0:00:15.6]} 27. Qg3 {[%clk 0:00:02.3]}
27... Qxf6 {[%clk 0:00:15.6]} 28. Rf1 {[%clk 0:00:01.7]} 28... Qxf1+ {[%clk
0:00:15.8]} 29. Bxf1 {[%clk 0:00:01.1]} 29... Rd1# {[%clk 0:00:15.9]} 0-1

[Event "*** Titled Tuesday Blitz"]
[Site "Chess.com"]
[Date "2020.05.12"]
[Round "4"]
[White "PenguinPacks"]
[Black "petrkostenko"]
[Result "0-1"]
[WhiteElo "2290"]
[BlackElo "2463"]
[TimeControl "180+1"]
[EndTime "10:38:30 PDT"]
[Termination "petrkostenko won on time"]

1. e4 {[%clk 0:03:00.9]} 1... c6 {[%clk 0:02:58.9]} 2. Nc3 {[%clk 0:03:00]} 2...
d5 {[%clk 0:02:59.1]} 3. d4 {[%clk 0:02:55.2]} 3... dxe4 {[%clk 0:02:57.4]} 4.
Nxe4 {[%clk 0:02:56.1]} 4... Bf5 {[%clk 0:02:57.6]} 5. Ng3 {[%clk 0:02:56.4]}
5... Bg6 {[%clk 0:02:57.7]} 6. h4 {[%clk 0:02:55.8]} 6... h6 {[%clk 0:02:56.1]}
7. Nh3 {[%clk 0:02:56.3]} 7... e6 {[%clk 0:02:51.5]} 8. Nf4 {[%clk 0:02:55.6]}
8... Bh7 {[%clk 0:02:51.3]} 9. Bc4 {[%clk 0:02:55.8]} 9... Nf6 {[%clk
0:02:41.8]} 10. Qe2 {[%clk 0:02:42.6]} 10... Nd5 {[%clk 0:02:29.3]} 11. c3
{[%clk 0:02:04.7]} 11... Be7 {[%clk 0:02:28.9]} 12. Ngh5 {[%clk 0:01:36.2]}
12... Rg8 {[%clk 0:01:52.1]} 13. Nxd5 {[%clk 0:00:37.4]} 13... cxd5 {[%clk
0:01:49.7]} 14. Bb5+ {[%clk 0:00:30.6]} 14... Nc6 {[%clk 0:01:46.9]} 15. Rh3
{[%clk 0:00:18.7]} 15... Qb6 {[%clk 0:01:36.9]} 16. a4 {[%clk 0:00:13.5]} 16...
a6 {[%clk 0:01:32.9]} 17. Bd3 {[%clk 0:00:13.5]} 17... Bxd3 {[%clk 0:01:30.8]}
18. Qxd3 {[%clk 0:00:14.4]} 18... O-O-O {[%clk 0:01:30.1]} 19. Qh7 {[%clk
0:00:13.7]} 19... Na5 {[%clk 0:01:06.8]} 20. b4 {[%clk 0:00:13.1]} 20... Nb3
{[%clk 0:00:57.6]} 21. Rb1 {[%clk 0:00:11.4]} 21... Nxc1 {[%clk 0:00:56.3]} 22.
Rxc1 {[%clk 0:00:12.3]} 22... Qc7 {[%clk 0:00:47.1]} 23. Rf3 {[%clk 0:00:07.9]}
23... Bxb4 {[%clk 0:00:44.4]} 24. Qb1 {[%clk 0:00:05.9]} 24... Ba5 {[%clk
0:00:41.6]} 25. Nf4 {[%clk 0:00:05.9]} 25... Kb8 {[%clk 0:00:39.9]} 26. Nd3
{[%clk 0:00:06.3]} 26... Ka7 {[%clk 0:00:39.1]} 27. Nc5 {[%clk 0:00:06.9]} 27...
Rc8 {[%clk 0:00:35.2]} 28. Ke2 {[%clk 0:00:05.6]} 28... Bb6 {[%clk 0:00:33.1]}
29. Nd3 {[%clk 0:00:02.4]} 29... Qc4 {[%clk 0:00:31.8]} 0-1

[Event "*** Titled Tuesday Blitz"]
[Site "Chess.com"]
[Date "2020.05.12"]
[Round "4"]
[White "luizwas"]
[Black "Srisshhhtea"]
[Result "0-1"]
[WhiteElo "1729"]
[BlackElo "2121"]
[TimeControl "180+1"]
[EndTime "10:38:30 PDT"]
[Termination "Srisshhhtea won by checkmate"]

1. e4 {[%clk 0:03:00.9]} 1... e6 {[%clk 0:02:56.8]} 2. d4 {[%clk 0:02:59.5]}
2... d5 {[%clk 0:02:55.9]} 3. exd5 {[%clk 0:02:59.5]} 3... exd5 {[%clk
0:02:53.4]} 4. Bd3 {[%clk 0:03:00]} 4... Bd6 {[%clk 0:02:52.3]} 5. Be3 {[%clk
0:02:54.3]} 5... Ne7 {[%clk 0:02:52.6]} 6. c3 {[%clk 0:02:51.4]} 6... Nbc6
{[%clk 0:02:51.9]} 7. Nd2 {[%clk 0:02:51.4]} 7... Bf5 {[%clk 0:02:51.5]} 8. Qc2
{[%clk 0:02:50]} 8... Qd7 {[%clk 0:02:51]} 9. O-O-O {[%clk 0:02:48.9]} 9...
O-O-O {[%clk 0:02:50.4]} 10. Ngf3 {[%clk 0:02:48]} 10... h6 {[%clk 0:02:49.6]}
11. Rde1 {[%clk 0:02:44.9]} 11... Rhe8 {[%clk 0:02:44.9]} 12. Nh4 {[%clk
0:02:30.3]} 12... Bxd3 {[%clk 0:02:42.3]} 13. Qxd3 {[%clk 0:02:31.2]} 13... g5
{[%clk 0:02:41.9]} 14. Nhf3 {[%clk 0:02:28.2]} 14... f5 {[%clk 0:02:41.5]} 15.
Nb3 {[%clk 0:02:22.4]} 15... f4 {[%clk 0:02:39]} 16. Bd2 {[%clk 0:02:21.1]}
16... Qf5 {[%clk 0:02:35.9]} 17. Qxf5+ {[%clk 0:02:19.9]} 17... Nxf5 {[%clk
0:02:36.8]} 18. Rxe8 {[%clk 0:02:05.1]} 18... Rxe8 {[%clk 0:02:35.5]} 19. Re1
{[%clk 0:02:05.4]} 19... Rxe1+ {[%clk 0:02:36]} 20. Bxe1 {[%clk 0:02:06.1]}
20... g4 {[%clk 0:02:32.4]} 21. Nfd2 {[%clk 0:02:02.7]} 21... Nh4 {[%clk
0:02:32]} 22. g3 {[%clk 0:02:01.8]} 22... fxg3 {[%clk 0:02:30.1]} 23. hxg3
{[%clk 0:02:02.7]} 23... Nf5 {[%clk 0:02:29.2]} 24. Nf1 {[%clk 0:01:58.2]} 24...
h5 {[%clk 0:02:28.9]} 25. Bd2 {[%clk 0:01:56.5]} 25... Nce7 {[%clk 0:02:28]} 26.
Ne3 {[%clk 0:01:56.5]} 26... Nxe3 {[%clk 0:02:26.7]} 27. Bxe3 {[%clk 0:01:57.4]}
27... Nf5 {[%clk 0:02:27]} 28. Kd2 {[%clk 0:01:52.5]} 28... Kd7 {[%clk
0:02:25.5]} 29. Nc1 {[%clk 0:01:48.7]} 29... h4 {[%clk 0:02:17.9]} 30. gxh4
{[%clk 0:01:47.2]} 30... Nxh4 {[%clk 0:02:18.8]} 31. Ne2 {[%clk 0:01:46.3]}
31... Nf5 {[%clk 0:02:15]} 32. Bf4 {[%clk 0:01:42.7]} 32... Ke6 {[%clk
0:02:11.9]} 33. Bxd6 {[%clk 0:01:41.7]} 33... Nxd6 {[%clk 0:02:12.8]} 34. Kd3
{[%clk 0:01:38.5]} 34... c6 {[%clk 0:02:11.8]} 35. Nf4+ {[%clk 0:01:36]} 35...
Kf5 {[%clk 0:02:11.5]} 36. Ne2 {[%clk 0:01:33.6]} 36... Ne4 {[%clk 0:02:09.4]}
37. Ke3 {[%clk 0:01:30.2]} 37... Kg5 {[%clk 0:01:57.5]} 38. Ng3 {[%clk
0:01:29.5]} 38... Nd6 {[%clk 0:01:55.3]} 39. b3 {[%clk 0:01:28.2]} 39... a5
{[%clk 0:01:53.4]} 40. Ne2 {[%clk 0:01:23.4]} 40... Nf5+ {[%clk 0:01:50.1]} 41.
Kd3 {[%clk 0:01:21.1]} 41... Nh4 {[%clk 0:01:50.2]} 42. c4 {[%clk 0:01:19.1]}
42... Ng2 {[%clk 0:01:45]} 43. a3 {[%clk 0:01:13]} 43... Nf4+ {[%clk 0:01:40.7]}
44. Ke3 {[%clk 0:01:05.6]} 44... Nxe2 {[%clk 0:01:39.9]} 45. Kxe2 {[%clk
0:01:06.5]} 45... Kf4 {[%clk 0:01:40.5]} 46. cxd5 {[%clk 0:00:53.9]} 46... cxd5
{[%clk 0:01:41.4]} 47. b4 {[%clk 0:00:53.9]} 47... axb4 {[%clk 0:01:40.2]} 48.
axb4 {[%clk 0:00:54.8]} 48... b5 {[%clk 0:01:38.8]} 49. Kf1 {[%clk 0:00:41.8]}
49... Kf3 {[%clk 0:01:30.6]} 50. Ke1 {[%clk 0:00:40.7]} 50... Ke4 {[%clk
0:01:26.9]} 51. Kf1 {[%clk 0:00:32.1]} 51... Kxd4 {[%clk 0:01:26.1]} 52. Kg2
{[%clk 0:00:33]} 52... Ke4 {[%clk 0:01:24.9]} 53. Kg3 {[%clk 0:00:33.9]} 53...
Kf5 {[%clk 0:01:24.5]} 54. f3 {[%clk 0:00:34.5]} 54... gxf3 {[%clk 0:01:23.2]}
55. Kxf3 {[%clk 0:00:35.4]} 55... Ke5 {[%clk 0:01:23.6]} 56. Ke3 {[%clk
0:00:35.9]} 56... d4+ {[%clk 0:01:23.9]} 57. Kd3 {[%clk 0:00:36.3]} 57... Kd5
{[%clk 0:01:24.5]} 58. Kc2 {[%clk 0:00:36]} 58... Kc4 {[%clk 0:01:25.4]} 59. Kd2
{[%clk 0:00:36.1]} 59... Kxb4 {[%clk 0:01:25.7]} 60. Kd3 {[%clk 0:00:37]} 60...
Kc5 {[%clk 0:01:26.1]} 61. Kc2 {[%clk 0:00:36.9]} 61... Kc4 {[%clk 0:01:27]} 62.
Kd2 {[%clk 0:00:37]} 62... b4 {[%clk 0:01:27.6]} 63. Kc2 {[%clk 0:00:37.9]}
63... b3+ {[%clk 0:01:27.9]} 64. Kb2 {[%clk 0:00:38.8]} 64... d3 {[%clk
0:01:27.6]} 65. Kc1 {[%clk 0:00:39.7]} 65... Kc3 {[%clk 0:01:27.9]} 66. Kb1
{[%clk 0:00:40.1]} 66... d2 {[%clk 0:01:27.6]} 67. Ka1 {[%clk 0:00:37.2]} 67...
d1=Q# {[%clk 0:01:27.9]} 0-1

[Event "*** Titled Tuesday Blitz"]
[Site "Chess.com"]
[Date "2020.05.12"]
[Round "4"]
[White "Kolle05"]
[Black "zmarian"]
[Result "1-0"]
[WhiteElo "2374"]
[BlackElo "2138"]
[TimeControl "180+1"]
[EndTime "10:38:30 PDT"]
[Termination "Kolle05 won by resignation"]

1. e4 {[%clk 0:03:00.9]} 1... g6 {[%clk 0:02:59.4]} 2. d4 {[%clk 0:02:58.7]}
2... Bg7 {[%clk 0:02:58.8]} 3. Nf3 {[%clk 0:02:58]} 3... c5 {[%clk 0:02:58.4]}
4. c4 {[%clk 0:02:41.6]} 4... cxd4 {[%clk 0:02:57.4]} 5. Nxd4 {[%clk 0:02:41]}
5... Nc6 {[%clk 0:02:57.2]} 6. Be3 {[%clk 0:02:40.1]} 6... d6 {[%clk 0:02:56.8]}
7. Nc3 {[%clk 0:02:39.2]} 7... Nf6 {[%clk 0:02:55.7]} 8. f3 {[%clk 0:02:38.6]}
8... O-O {[%clk 0:02:54.7]} 9. Be2 {[%clk 0:02:38.6]} 9... Bd7 {[%clk
0:02:53.5]} 10. O-O {[%clk 0:02:38.6]} 10... a6 {[%clk 0:02:49.7]} 11. Rc1
{[%clk 0:02:38.3]} 11... Nxd4 {[%clk 0:02:48.2]} 12. Bxd4 {[%clk 0:02:37.7]}
12... Bc6 {[%clk 0:02:48.6]} 13. b4 {[%clk 0:02:26.6]} 13... Bd7 {[%clk
0:02:31.6]} 14. a4 {[%clk 0:02:18.7]} 14... Be6 {[%clk 0:02:30.4]} 15. a5 {[%clk
0:02:14.8]} 15... Qd7 {[%clk 0:02:26.4]} 16. Nd5 {[%clk 0:02:01]} 16... Bxd5
{[%clk 0:02:23.6]} 17. exd5 {[%clk 0:01:59.5]} 17... Rac8 {[%clk 0:02:16.1]} 18.
Qd2 {[%clk 0:01:52.5]} 18... Nh5 {[%clk 0:02:13.4]} 19. Rfd1 {[%clk 0:01:46.6]}
19... f5 {[%clk 0:02:07.2]} 20. Bxg7 {[%clk 0:01:43.8]} 20... Nxg7 {[%clk
0:02:05.2]} 21. c5 {[%clk 0:01:42.4]} 21... dxc5 {[%clk 0:01:49.7]} 22. bxc5
{[%clk 0:01:43.3]} 22... Ne8 {[%clk 0:01:46.6]} 23. Qd4 {[%clk 0:01:11.9]} 23...
Nf6 {[%clk 0:01:43.9]} 24. Bc4 {[%clk 0:01:06.4]} 24... Kg7 {[%clk 0:01:41]} 25.
c6 {[%clk 0:00:56.4]} 25... bxc6 {[%clk 0:01:34.1]} 26. Bxa6 {[%clk 0:00:56.2]}
26... Ra8 {[%clk 0:01:27.3]} 27. Rxc6 {[%clk 0:00:52.5]} 27... Ra7 {[%clk
0:01:20.5]} 28. Bb5 {[%clk 0:00:50.1]} 28... Qb7 {[%clk 0:01:09.1]} 29. a6
{[%clk 0:00:35.4]} 29... Qb8 {[%clk 0:00:59.7]} 30. Rb6 {[%clk 0:00:30.9]} 30...
Qc7 {[%clk 0:00:50.1]} 31. Bc6 {[%clk 0:00:30.5]} 31... Rb8 {[%clk 0:00:44.4]}
32. Rdb1 {[%clk 0:00:28]} 32... Rxb6 {[%clk 0:00:43.8]} 33. Qxb6 {[%clk
0:00:28.5]} 33... Qxb6+ {[%clk 0:00:42.3]} 34. Rxb6 {[%clk 0:00:29.4]} 34... Nd7
{[%clk 0:00:34.8]} 35. Rb7 {[%clk 0:00:27.6]} 35... Rxb7 {[%clk 0:00:33.4]} 36.
Bxb7 {[%clk 0:00:26.9]} 36... Nb6 {[%clk 0:00:28.1]} 37. a7 {[%clk 0:00:26.7]}
37... Kf6 {[%clk 0:00:28.1]} 38. a8=Q {[%clk 0:00:27]} 38... Nxa8 {[%clk
0:00:28.2]} 39. Bxa8 {[%clk 0:00:27.9]} 39... Ke5 {[%clk 0:00:28.2]} 40. Kf2
{[%clk 0:00:27.8]} 40... Kd4 {[%clk 0:00:27.8]} 1-0